bitfinex-derivatives/quotes_ETHF0:USTF0_20230104
["timestamp","ask_amount","ask_price","bid_price","bid_amount"]
[1672853606848,3.0,1267.8,1267.7,1.0]
[1672853607165,3.0,1267.8,1267.6,2.1]
[1672853607699,6.0073,1267.8,1267.3,1.0]
[1672853607908,3.0,1267.7,1267.3,1.0]
[1672853608220,3.0,1267.7,1267.1,2.5]
[1672853608221,3.0,1267.5,1267.0,2.5]
[1672853608535,3.0,1267.1,1266.6,3.0073]
[1672853608741,3.0073,1267.4,1266.9,5.0]
[1672853608954,3.0,1267.7,1266.9,3.0073]
[1672853609260,3.0,1267.3,1267.0,2.5]
[1672853609694,3.0073,1267.2,1267.0,2.5]
[1672853609900,2.5,1267.1,1267.0,2.5]
[1672853610107,5.5,1267.1,1266.8,1.5]
[1672853610428,6.0073,1267.0,1266.6,1.1814]
[1672853610633,1.5,1266.9,1266.6,1.1814]
[1672853610846,1.5,1266.9,1266.6,4.1887]
[1672853611058,1.5,1266.9,1266.7,1.5]
[1672853611370,4.5,1266.9,1266.5,2.5]
[1672853611577,3.0073,1266.8,1266.3,4.2029]
[1672853611785,3.0,1266.5,1266.3,4.2029]
[1672853611992,3.0,1266.5,1266.1,2.5]
[1672853612218,3.0,1266.3,1266.1,2.5]
[1672853612422,3.0,1266.7,1266.1,2.5]
[1672853612738,7.5073,1266.9,1266.3,3.0073]
[1672853612950,3.0,1266.8,1266.3,3.0073]
[1672853613264,3.0,1266.8,1266.2,4.1887]
[1672853613474,3.0,1266.8,1266.2,1.1814]
[1672853613686,3.0073,1266.7,1266.2,1.1814]
[1672853613892,3.0073,1266.7,1266.1,10.5073]
[1672853614101,3.0,1266.3,1266.0,2.611]
[1672853614318,3.0,1266.6,1266.0,7.611]
[1672853614518,4.5073,1266.9,1266.1,3.0073]
[1672853614731,4.5073,1266.9,1266.3,3.0073]
[1672853615042,3.0,1266.7,1266.3,3.0073]
[1672853615367,4.5073,1266.9,1266.2,3.6814]
[1672853615368,2.5,1267.1,1266.5,3.0073]
[1672853615581,3.0,1267.0,1266.7,3.0073]
[1672853615786,1.5,1266.9,1266.7,3.0073]
[1672853615992,3.0,1267.2,1266.7,3.0073]
[1672853616207,3.0,1267.3,1266.9,3.0073]
[1672853616417,3.0,1267.3,1266.5,5.0]
[1672853616418,2.5,1267.4,1267.1,3.0073]
[1672853617147,3.0,1267.7,1267.3,3.0073]
[1672853617358,3.0,1267.7,1267.5,3.0073]
[1672853617572,2.5,1267.9,1267.5,3.0073]
[1672853618199,2.5,1267.9,1267.3,3.0073]
[1672853618409,3.0,1268.0,1267.8,3.0073]
[1672853618622,3.0,1268.0,1267.6,3.0073]
[1672853618823,3.0,1267.7,1267.3,3.0073]
[1672853619035,3.0,1267.7,1267.5,3.0073]
[1672853620832,3.0,1267.7,1267.1,3.0073]
[1672853621039,3.0,1267.3,1267.1,3.0073]
[1672853621461,3.0073,1267.8,1267.1,3.0073]
[1672853621663,2.5,1267.8,1267.1,3.0073]
[1672853621874,2.5,1267.8,1267.3,3.0073]
[1672853622299,3.0073,1267.6,1267.3,3.0073]
[1672853622722,3.0073,1267.6,1267.3,2.94418114]
[1672853622933,3.0073,1267.6,1267.3,2.91262171]
[1672853623142,3.0073,1267.4,1267.0,3.0073]
[1672853623565,3.0073,1267.4,1266.8,1.5]
[1672853623769,1.1814,1267.3,1266.8,1.5]
[1672853623978,1.5,1267.2,1266.8,1.5]
[1672853624612,4.5073,1267.2,1266.8,1.5]
[1672853625242,4.5073,1267.2,1266.5,1.1814]
[1672853625451,4.5073,1267.2,1266.3,3.0073]
[1672853625681,3.0073,1266.8,1266.3,3.0073]
[1672853625979,3.0073,1266.6,1266.3,3.0073]
[1672853626295,2.5,1266.5,1266.0,1.111]
[1672853626825,2.5,1266.5,1266.0,3.611]
[1672853627989,3.0073,1266.4,1266.0,1.111]
[1672853628296,3.0073,1266.2,1266.0,1.111]
[1672853628709,5.5073,1266.5,1266.0,1.111]
[1672853629347,3.0073,1266.3,1266.0,1.111]
[1672853629761,2.5,1266.2,1266.0,1.111]
[1672853630399,3.0073,1266.1,1266.0,1.07940692]
[1672853630602,3.0073,1266.1,1266.0,1.0320173]
[1672853630819,3.0073,1266.3,1266.0,1.0320173]
[1672853631029,3.6814,1266.5,1266.0,1.0320173]
[1672853631444,3.0073,1266.4,1266.0,1.0320173]
[1672853631646,2.5,1266.1,1266.0,1.0320173]
[1672853633754,2.5,1266.1,1266.0,1.73e-05]
[1672853638700,4.1886827,1266.0,1265.1,4.1515]
[1672853638897,3.0073,1265.5,1265.2,2.5]
[1672853639755,1.5,1265.4,1265.2,2.5]
[1672853640487,3.0073,1265.5,1265.2,2.5]
[1672853641330,3.0073,1265.3,1265.2,2.5]
[1672853641540,3.0073,1265.3,1264.8,3.0]
[1672853641956,3.0073,1265.1,1264.9,2.5]
[1672853642377,3.0073,1265.5,1265.0,3.0]
[1672853642589,3.0073,1265.5,1265.1,1.1814]
[1672853642808,1.1814,1265.9,1264.9,2.5]
[1672853642809,3.0073,1265.3,1264.9,2.5]
[1672853643013,3.0073,1265.1,1264.9,2.5]
[1672853643226,2.5,1265.6,1265.0,7.971]
[1672853643429,3.0073,1265.5,1265.2,3.0]
[1672853643640,3.0073,1265.7,1265.2,10.971]
[1672853643858,3.0073,1265.7,1265.3,10.9783]
[1672853644166,3.0073,1265.9,1265.3,10.9783]
[1672853644377,5.5073,1266.1,1265.5,13.9783]
[1672853644589,2.5,1266.1,1265.6,1.1814]
[1672853644803,2.5,1266.1,1265.8,3.0073]
[1672853645008,2.5,1266.1,1265.7,7.971]
[1672853645331,3.0073,1266.4,1265.9,10.971]
[1672853645539,3.0073,1266.4,1265.9,7.971]
[1672853645750,2.5,1266.3,1265.8,9.1524]
[1672853646168,2.5,1266.3,1265.8,1.1814]
[1672853646379,10.9783,1266.2,1265.6,3.0073]
[1672853646586,3.0073,1266.2,1265.5,3.0]
[1672853646797,3.0073,1266.2,1265.5,10.971]
[1672853647007,3.0073,1266.0,1265.4,4.1887]
[1672853647429,3.0073,1265.8,1265.4,1.1814]
[1672853647644,10.9783,1265.6,1265.1,1.1814]
[1672853647956,3.0073,1265.4,1265.1,1.1814]
[1672853648158,3.0073,1265.6,1265.1,1.1814]
[1672853648800,3.0073,1265.6,1265.1,9.1524]
[1672853649326,3.0073,1265.6,1265.1,1.1814]
[1672853649638,10.9783,1265.4,1264.9,2.5]
[1672853649841,3.0073,1265.4,1264.9,2.5]
[1672853650057,3.0073,1265.2,1264.9,2.5]
[1672853650265,1.5,1265.3,1264.9,10.471]
[1672853650578,3.0073,1265.6,1265.0,4.1887]
[1672853650791,2.5,1265.5,1265.1,7.971]
[1672853651213,3.0073,1265.6,1265.1,7.971]
[1672853651531,2.5,1265.5,1265.2,12.1597]
[1672853651735,3.0073,1265.8,1265.2,12.1597]
[1672853651951,3.0073,1265.8,1265.2,9.1524]
[1672853652264,3.0073,1265.6,1265.2,9.1524]
[1672853652461,3.0073,1265.6,1265.2,1.1814]
[1672853652675,3.0073,1265.6,1265.2,9.1524]
[1672853652890,3.0073,1265.6,1265.2,1.1814]
[1672853653096,3.0073,1265.6,1265.0,7.971]
[1672853653310,3.0073,1265.4,1264.9,2.5]
[1672853653935,2.5,1265.3,1264.9,2.5]
[1672853654575,3.0073,1265.4,1264.9,10.471]
[1672853655095,3.0073,1265.0,1264.9,2.5]
[1672853655308,3.0073,1265.0,1264.4,10.37327237]
[1672853655520,3.0073,1265.0,1264.5,2.5]
[1672853655725,3.0073,1264.8,1264.5,2.5]
[1672853656465,3.0073,1264.6,1264.5,2.5]
[1672853656674,3.0073,1264.8,1264.5,2.5]
[1672853656884,3.0073,1264.8,1264.5,10.471]
[1672853657297,3.0073,1264.8,1264.5,2.5]
[1672853657504,2.5,1264.9,1264.5,10.471]
[1672853657720,3.0073,1264.8,1264.5,2.5]
[1672853660030,10.9783,1264.8,1264.3,1.5]
[1672853660239,10.9783,1264.8,1264.0,7.971]
[1672853660240,3.0073,1264.6,1264.0,7.971]
[1672853660450,3.0073,1264.6,1263.9,7.971]
[1672853660663,3.0073,1264.4,1264.1,2.5]
[1672853661083,3.0073,1264.4,1263.9,3.0073]
[1672853661295,10.9783,1264.4,1263.6,11.21418115]
[1672853661506,3.0073,1264.2,1263.6,1.13125096]
[1672853661714,3.0073,1264.2,1263.7,5.5073]
[1672853661926,5.5073,1264.9,1264.1,3.0073]
[1672853662341,5.5073,1264.9,1264.3,3.0073]
[1672853662556,2.5,1264.9,1264.3,10.9783]
[1672853662769,2.5,1264.9,1264.5,3.0073]
[1672853662977,11.6524,1265.0,1264.5,3.0073]
[1672853662978,1.1814,1265.0,1264.5,3.0073]
[1672853663189,3.0073,1265.5,1264.7,3.0073]
[1672853663508,3.0073,1265.5,1264.9,3.0073]
[1672853663717,2.5,1265.4,1265.0,2.5]
[1672853663923,7.971,1265.3,1265.0,2.5]
[1672853664137,7.971,1265.3,1264.7,4.1887]
[1672853664342,1.5,1265.2,1264.8,2.5]
[1672853664561,1.5,1265.2,1264.9,3.0073]
[1672853664873,2.5,1265.4,1264.9,3.0073]
[1672853665083,2.5,1265.4,1264.9,10.9783]
[1672853665400,3.0073,1265.3,1264.9,3.0073]
[1672853665600,10.9783,1265.3,1264.6,2.5]
[1672853665809,3.0073,1265.3,1264.6,2.5]
[1672853666031,3.0073,1265.3,1264.7,3.0073]
[1672853666348,10.9783,1265.3,1264.7,3.0073]
[1672853666555,3.0073,1265.1,1264.7,3.0073]
[1672853667411,3.6814,1265.4,1264.7,3.0073]
[1672853667629,2.5,1265.4,1264.9,3.0073]
[1672853669309,5.5073,1265.4,1264.9,3.0073]
[1672853669512,13.4783,1265.4,1264.9,3.0073]
[1672853669732,13.4783,1265.4,1264.7,4.1887]
[1672853669921,3.0073,1265.2,1264.7,4.1887]
[1672853670137,4.67893534,1264.9,1264.7,4.1887]
[1672853670460,9.93122466,1264.9,1264.6,2.5]
[1672853670670,5.79188415,1264.8,1264.3,10.9783]
[1672853670981,5.79188415,1264.8,1264.4,2.5]
[1672853670982,9.94548052,1264.7,1264.4,2.5]
[1672853671201,1.5,1264.6,1264.4,2.5]
[1672853671400,9.94548052,1264.7,1264.4,2.5]
[1672853671598,6.1931912,1264.6,1264.4,2.5]
[1672853671831,2.5,1264.5,1264.4,2.5]
[1672853672448,6.1931912,1264.6,1264.4,2.5]
[1672853673396,4.6931912,1264.6,1264.5,10.9783]
[1672853673606,9.94548052,1264.7,1264.5,10.9783]
[1672853673827,5.25228932,1264.7,1264.5,10.9783]
[1672853674037,4.6931912,1264.8,1264.5,10.9783]
[1672853674236,4.6931912,1264.8,1264.7,3.0073]
[1672853675181,5.25228932,1264.8,1264.5,10.9783]
[1672853675394,4.69588209,1264.7,1264.5,10.9783]
[1672853675826,4.69588209,1264.8,1264.5,10.9783]
[1672853676040,4.69588209,1264.8,1264.7,3.0073]
[1672853677079,11.04417347,1264.9,1264.7,3.0073]
[1672853677281,5.25228932,1264.8,1264.7,3.0073]
[1672853677813,5.79188415,1264.9,1264.4,2.5]
[1672853678019,12.4783,1265.0,1264.4,2.5]
[1672853679283,12.4783,1265.0,1264.3,3.0073]
[1672853679284,10.9783,1264.8,1264.3,3.0073]
[1672853679605,10.9783,1264.8,1263.9,3.0073]
[1672853679813,10.9783,1264.6,1264.0,2.5]
[1672853680320,10.9783,1264.6,1264.0,10.471]
[1672853680321,3.0073,1264.6,1264.0,10.471]
[1672853680534,2.5,1264.5,1264.0,2.5]
[1672853681369,10.471,1264.5,1264.0,2.5]
[1672853681580,3.0073,1264.4,1264.0,2.5]
[1672853681786,2.5,1264.3,1264.0,2.5]
[1672853682525,3.6814,1264.5,1264.0,2.5]
[1672853683568,3.0073,1264.4,1264.0,2.5]
[1672853684100,2.5,1264.3,1264.0,2.5]
[1672853685248,10.471,1264.3,1263.8,1.5]
[1672853685573,1.1814,1264.2,1263.8,2.5]
[1672853686300,4.1887,1264.2,1263.8,2.5]
[1672853686721,1.5,1264.1,1263.8,2.5]
[1672853687250,4.70020064,1264.2,1263.8,2.5]
[1672853687462,12.45248996,1264.3,1263.8,2.5]
[1672853687668,7.20020064,1264.3,1263.8,2.5]
[1672853688299,12.1597,1264.2,1263.8,2.5]
[1672853688506,1.1814,1264.2,1263.8,2.5]
[1672853689769,4.1887,1264.2,1263.8,2.5]
[1672853690821,8.88890064,1264.2,1263.8,2.5]
[1672853691036,7.70750064,1264.2,1263.8,2.5]
[1672853691658,3.0073,1264.2,1263.8,2.5]
[1672853692503,7.70750064,1264.2,1263.8,2.5]
[1672853692714,11.6524,1264.3,1263.8,2.5]
[1672853693135,3.6814,1264.3,1263.8,2.5]
[1672853693555,11.6524,1264.3,1263.8,2.5]
[1672853693865,3.0073,1264.0,1263.6,1.13125096]
[1672853694077,3.0073,1264.0,1263.6,3.63125096]
[1672853695133,10.9783,1264.2,1263.6,3.63125096]
[1672853695760,3.0073,1264.2,1263.6,3.63125096]
[1672853695974,3.0073,1264.2,1263.7,4.5073]
[1672853696809,12.67120064,1264.6,1264.1,3.0073]
[1672853697018,3.0073,1264.3,1263.9,3.0073]
[1672853697231,5.5073,1264.5,1263.9,3.0073]
[1672853697443,2.5,1264.4,1263.9,3.0073]
[1672853697868,2.5,1264.4,1264.1,3.0073]
[1672853698079,5.5073,1264.5,1264.1,3.0073]
[1672853698398,11.13388996,1264.8,1264.1,10.9783]
[1672853698605,18.75167411,1264.9,1264.3,3.0073]
[1672853698914,2.5,1264.8,1264.3,10.9783]
[1672853699347,3.0073,1264.7,1264.3,10.9783]
[1672853699546,2.5,1264.8,1264.3,10.9783]
[1672853699963,7.70750064,1264.9,1264.3,10.9783]
[1672853700283,9.95248996,1265.0,1264.5,10.9783]
[1672853700494,12.95978996,1265.1,1264.5,10.9783]
[1672853700710,12.95978996,1265.1,1264.7,3.0073]
[1672853700918,2.5,1265.0,1264.7,3.0073]
[1672853701233,2.5,1265.0,1264.8,2.5]
[1672853702381,2.5,1265.0,1264.6,1.5]
[1672853703016,7.20020064,1265.0,1264.6,1.5]
[1672853703853,2.5,1265.0,1264.6,1.5]
[1672853704174,10.471,1265.0,1264.6,1.5]
[1672853704380,15.17120064,1265.0,1264.6,1.5]
[1672853704599,7.20020064,1265.0,1264.6,1.5]
[1672853704908,2.5,1265.0,1264.6,1.5]
[1672853705115,7.20020064,1265.0,1264.6,1.5]
[1672853705957,15.17120064,1265.0,1264.5,3.0073]
[1672853706165,2.5,1264.8,1264.4,2.5]
[1672853707006,1.5,1264.9,1264.5,3.0073]
[1672853707842,11.04417347,1264.6,1264.5,3.0073]
[1672853708687,5.79188415,1264.6,1264.5,3.0073]
[1672853708898,11.08956242,1264.6,1264.5,3.0073]
[1672853709526,5.79188415,1264.6,1264.5,3.0073]
[1672853709951,2.5,1264.8,1264.2,2.6814]
[1672853710159,5.89089138,1264.4,1264.3,2.5]
[1672853710800,5.89089138,1264.4,1264.2,2.5]
[1672853711010,10.9783,1264.7,1264.2,2.5]
[1672853711220,5.90593063,1264.6,1264.2,2.5]
[1672853711635,10.9783,1264.5,1263.9,4.1887]
[1672853711844,5.30356635,1264.0,1263.9,3.0073]
[1672853712056,5.30356635,1264.0,1263.8,2.5]
[1672853712271,7.80356635,1264.0,1263.8,2.5]
[1672853712582,5.30356635,1263.9,1263.8,2.5]
[1672853713109,1.5,1263.9,1263.8,2.5]
[1672853713322,5.30319555,1263.9,1263.8,2.5]
[1672853713522,6.80319555,1263.9,1263.8,2.5]
[1672853713733,12.69604705,1263.9,1263.8,2.5]
[1672853713950,11.19604705,1263.9,1263.8,2.5]
[1672853714372,15.90971553,1263.9,1263.8,10.471]
[1672853714582,10.01686403,1263.9,1263.8,10.471]
[1672853714782,10.01686403,1263.9,1263.8,2.5]
[1672853715207,5.8928515,1264.0,1263.8,2.5]
[1672853715631,2.5,1264.2,1263.8,2.5]
[1672853715950,2.5,1264.2,1263.7,3.0073]
[1672853716160,2.5,1264.2,1263.6,3.81265096]
[1672853716161,3.0073,1264.1,1263.6,3.81265096]
[1672853716371,3.0073,1264.1,1263.6,2.63125096]
[1672853716583,2.5,1264.0,1263.6,2.63125096]
[1672853718154,3.0073,1263.9,1263.6,2.63125096]
[1672853720255,3.0073,1263.9,1263.6,1.13125096]
[1672853720576,10.9783,1263.7,1263.5,1.13138478]
[1672853720783,3.0073,1263.7,1263.5,1.13138478]
[1672853721201,9.1524,1263.8,1263.5,1.13138478]
[1672853721409,1.1814,1263.8,1263.5,1.13138478]
[1672853722160,3.0073,1263.7,1263.5,1.13138478]
[1672853722356,10.9783,1263.7,1263.5,1.13138478]
[1672853722881,13.27419555,1263.6,1263.5,1.13138478]
[1672853723623,5.30319555,1263.6,1263.5,1.13138478]
[1672853724040,10.01648137,1263.6,1263.5,1.13138478]
[1672853724251,4.71328582,1263.6,1263.5,1.13138478]
[1672853724774,10.01648137,1263.7,1263.5,1.13138478]
[1672853725096,4.71328582,1263.7,1263.5,1.13138478]
[1672853725720,10.60613732,1263.8,1263.5,1.13138478]
[1672853725936,4.71328582,1263.8,1263.5,1.13138478]
[1672853726564,4.71328582,1263.8,1263.6,3.0073]
[1672853726775,10.01648137,1263.9,1263.6,3.0073]
[1672853726982,4.71328582,1263.9,1263.6,3.0073]
[1672853727617,4.71328582,1263.8,1263.6,3.0073]
[1672853728666,4.71328582,1263.8,1263.5,1.13138478]
[1672853729608,4.71328582,1263.8,1263.6,3.0073]
[1672853729825,10.01648137,1263.9,1263.6,10.9783]
[1672853730240,5.8928515,1264.0,1263.7,1.1814]
[1672853730453,13.02378137,1264.4,1263.8,10.9783]
[1672853730873,2.5,1264.3,1263.8,10.9783]
[1672853731086,2.5,1264.3,1263.9,1.5]
[1672853732140,7.21328582,1264.3,1263.9,1.5]
[1672853732349,3.0073,1264.2,1263.9,1.5]
[1672853732560,1.5,1264.1,1263.9,1.5]
[1672853733715,3.0073,1264.2,1263.9,1.5]
[1672853734340,1.5,1264.1,1263.9,1.5]
[1672853734559,1.5,1264.1,1263.6,4.1887]
[1672853734759,1.5,1264.1,1263.7,1.5]
[1672853736228,3.0073,1264.2,1263.7,1.5]
[1672853736439,1.5,1264.1,1263.7,1.5]
[1672853737186,3.0073,1264.0,1263.7,1.5]
[1672853738241,13.02378137,1264.2,1263.7,1.5]
[1672853738445,3.0073,1264.0,1263.7,1.5]
[1672853740443,13.02378137,1264.2,1263.7,1.5]
[1672853740971,1.5,1264.1,1263.7,1.5]
[1672853742548,6.21328582,1264.1,1263.7,1.5]
[1672853743383,4.71328582,1264.1,1263.8,3.0073]
[1672853743588,8.31049555,1264.2,1263.8,3.0073]
[1672853743589,10.01648137,1264.2,1263.9,1.1814]
[1672853743802,4.71328582,1264.2,1263.9,1.1814]
[1672853744120,4.71328582,1264.2,1264.0,2.5]
[1672853744121,7.21328582,1264.2,1264.0,2.5]
[1672853744332,15.52378137,1264.2,1264.0,2.5]
[1672853744653,1.5,1264.1,1264.0,2.5]
[1672853745165,1.5,1264.1,1263.9,2.5]
[1672853745590,1.5,1264.1,1263.8,3.0073]
[1672853745902,3.0073,1264.0,1263.7,1.0]
[1672853746117,5.89682946,1263.8,1263.7,1.0]
[1672853746642,5.89682946,1263.8,1263.6,2.5]
[1672853746857,5.30740935,1263.7,1263.6,2.5]
[1672853747168,11.20423881,1263.7,1263.5,2.5]
[1672853747370,5.89682946,1263.7,1263.5,2.5]
[1672853748011,5.89682946,1263.6,1263.5,2.5]
[1672853749162,11.20998998,1263.6,1263.5,2.5]
[1672853749688,5.89682946,1263.6,1263.5,2.5]
[1672853749897,5.90593063,1263.9,1263.5,2.5]
[1672853750839,5.91337478,1263.6,1263.5,2.5]
[1672853751048,5.91337478,1263.6,1263.4,2.6814]
[1672853751049,5.91337478,1263.6,1263.4,1.5]
[1672853751888,3.0073,1263.6,1263.4,1.5]
[1672853752097,3.0073,1263.6,1263.3,2.5]
[1672853752312,5.9174437,1263.4,1263.3,2.5]
[1672853753252,14.24793079,1263.8,1263.3,2.5]
[1672853753465,7.74105567,1263.8,1263.4,3.0073]
[1672853753672,3.0073,1263.8,1263.4,3.0073]
[1672853753882,2.5,1263.7,1263.4,3.0073]
[1672853754305,5.5073,1263.7,1263.3,2.5]
[1672853754837,18.21205567,1263.7,1263.3,2.5]
[1672853755669,10.24105567,1263.7,1263.3,2.5]
[1672853756304,2.5,1263.7,1263.3,2.5]
[1672853757254,7.23375567,1263.7,1263.3,2.5]
[1672853758089,14.24793079,1263.8,1263.3,2.5]
[1672853758510,10.05923079,1263.9,1263.4,3.0073]
[1672853758726,4.73375567,1263.9,1263.4,10.9783]
[1672853759255,2.5,1263.8,1263.4,10.9783]
[1672853759661,4.73375567,1263.9,1263.4,10.9783]
[1672853759884,7.23375567,1263.9,1263.4,10.9783]
[1672853760198,4.73375567,1263.5,1263.4,10.9783]
[1672853760926,10.05923079,1263.6,1263.4,10.9783]
[1672853761134,10.05923079,1263.6,1263.5,12.722]
[1672853761347,5.32123963,1263.7,1263.5,12.722]
[1672853761559,5.32123963,1263.7,1263.6,10.9783]
[1672853762090,11.23868333,1263.8,1263.6,10.9783]
[1672853762618,5.32123963,1263.7,1263.6,10.9783]
[1672853763558,5.32123963,1263.7,1263.6,7.971]
[1672853763759,5.32123963,1263.7,1263.4,8.9357]
[1672853763977,5.32123963,1263.5,1263.4,7.7543]
[1672853765137,11.23868333,1263.5,1263.4,4.747]
[1672853765339,11.24031367,1263.5,1263.4,4.747]
[1672853765552,11.24031367,1263.5,1263.4,15.7253]
[1672853766083,5.32286997,1263.5,1263.4,15.7253]
[1672853767341,5.27538095,1263.5,1263.4,15.7253]
[1672853768075,1.5,1263.9,1263.4,15.7253]
[1672853769441,12.6061437,1264.0,1263.4,15.7253]
[1672853769647,8.9247437,1264.0,1263.6,3.0073]
[1672853769858,5.9174437,1264.1,1263.7,12.675]
[1672853770284,5.9174437,1264.1,1263.8,3.0073]
[1672853770489,5.9174437,1264.2,1263.8,3.0073]
[1672853770813,5.9174437,1264.2,1263.9,1.5]
[1672853771125,1.5,1264.1,1263.9,1.5]
[1672853771331,6.23105838,1264.1,1263.9,1.5]
[1672853772063,4.73105838,1264.0,1263.9,1.5]
[1672853773111,5.9174437,1264.2,1264.1,7.971]
[1672853773328,5.77505554,1264.3,1264.2,5.775]
[1672853773535,5.77505554,1264.3,1264.2,13.746]
[1672853774271,8.91323063,1264.8,1264.2,13.746]
[1672853774481,8.91323063,1264.8,1264.4,12.703]
[1672853774690,2.5,1264.7,1264.4,12.703]
[1672853775323,2.5,1264.7,1264.4,10.98496146]
[1672853775956,3.0073,1264.8,1264.4,10.98496146]
[1672853776165,5.90593063,1265.0,1264.5,14.01126146]
[1672853776372,8.91323063,1265.0,1264.5,14.01126146]
[1672853776589,5.90593063,1264.6,1264.5,14.01126146]
[1672853777538,5.90593063,1264.6,1264.5,11.00396146]
[1672853778060,5.90593063,1264.6,1264.5,14.01126146]
[1672853778268,5.90593063,1264.7,1264.5,14.01126146]
[1672853779321,5.90593063,1264.7,1264.5,12.22234427]
[1672853779640,5.90593063,1264.6,1264.5,12.22234427]
[1672853780793,5.90593063,1264.6,1264.5,9.21504427]
[1672853781217,8.949861,1265.4,1264.9,1.1814]
[1672853781422,8.949861,1265.4,1265.2,3.0073]
[1672853781639,8.949861,1265.4,1265.0,14.01126146]
[1672853781848,2.5,1265.3,1265.0,14.01126146]
[1672853782268,6.449861,1265.4,1265.2,13.96426146]
[1672853782479,1.1814,1265.7,1265.2,13.96426146]
[1672853782895,5.88167094,1265.4,1265.2,10.95696146]
[1672853783106,5.88167094,1265.4,1265.3,9.26026146]
[1672853784789,5.88167094,1265.6,1265.3,9.26026146]
[1672853785000,5.88167094,1265.6,1265.5,9.26026146]
[1672853785630,8.38167094,1265.7,1265.5,9.26026146]
[1672853786161,8.38167094,1265.7,1265.5,3.0073]
[1672853786574,11.38897094,1265.7,1265.4,12.722]
[1672853786788,11.38897094,1265.7,1265.3,3.0073]
[1672853787106,8.38167094,1265.7,1265.4,7.971]
[1672853788045,5.88167094,1265.7,1265.6,15.6883]
[1672853788251,3.0073,1265.9,1265.5,12.722]
[1672853788472,2.5,1265.8,1265.5,4.751]
[1672853789206,2.5,1265.8,1265.6,3.0073]
[1672853789412,2.5,1265.8,1265.6,10.9783]
[1672853790254,2.5,1265.8,1265.6,7.83145323]
[1672853790466,2.5,1265.8,1265.5,7.7583]
[1672853790674,3.0073,1265.7,1265.5,7.7583]
[1672853790991,3.0073,1265.7,1265.3,7.7583]
[1672853791199,5.84413151,1265.4,1265.3,7.7583]
[1672853791611,5.84413151,1265.4,1264.9,28.82840899]
[1672853791822,5.84413151,1265.4,1264.9,17.87770899]
[1672853792037,5.84413151,1265.2,1264.9,7.7413]
[1672853792665,5.84413151,1265.2,1265.0,7.971]
[1672853793403,5.84413151,1265.2,1265.1,15.6903]
[1672853794248,5.84413151,1265.2,1265.1,14.12127001]
[1672853794880,5.84413151,1265.3,1265.1,4.712]
[1672853795085,5.84413151,1265.3,1265.2,7.971]
[1672853795611,5.84413151,1265.3,1265.2,12.722]
[1672853795927,5.84413151,1265.4,1265.3,12.971]
[1672853796138,5.84413151,1265.4,1265.3,8.0073]
[1672853796555,5.84413151,1265.4,1265.3,5.0]
[1672853796985,5.84413151,1265.4,1265.1,4.751]
[1672853797189,5.84413151,1265.4,1265.0,7.971]
[1672853797190,1.5,1265.3,1265.0,7.971]
[1672853797400,4.5073,1265.3,1264.7,7.7193]
[1672853797611,5.84413151,1265.1,1264.7,3.0073]
[1672853798247,5.84413151,1265.1,1264.8,7.971]
[1672853798456,4.5073,1265.3,1264.8,7.971]
[1672853799407,3.0073,1265.4,1265.0,7.971]
[1672853799929,6.6887,1265.6,1265.2,7.971]
[1672853800140,3.0073,1265.4,1265.2,7.971]
[1672853800344,4.5073,1265.7,1265.3,12.683]
[1672853801818,3.0073,1265.8,1265.5,12.675]
[1672853802138,2.5,1265.9,1265.5,12.675]
[1672853802556,3.0073,1265.8,1265.5,12.675]
[1672853803182,2.5,1265.9,1265.5,12.675]
[1672853803608,3.0073,1265.8,1265.5,4.704]
[1672853803809,2.5,1265.9,1265.5,12.675]
[1672853804230,3.0073,1265.8,1265.5,12.675]
[1672853805077,3.0073,1265.8,1265.5,4.704]
[1672853805285,3.0073,1265.6,1265.3,4.751]
[1672853806028,5.84413151,1265.5,1265.3,4.751]
[1672853806239,5.84413151,1265.5,1265.3,12.722]
[1672853806979,5.84413151,1265.4,1265.3,12.722]
[1672853807392,5.84413151,1265.4,1265.3,7.971]
[1672853807714,5.84413151,1265.4,1265.1,12.722]
[1672853808029,5.84413151,1265.3,1265.1,12.722]
[1672853808235,5.84413151,1265.3,1265.1,7.971]
[1672853808438,5.84413151,1265.3,1265.0,7.971]
[1672853808763,5.84413151,1265.3,1265.1,12.716]
[1672853808764,2.5,1265.2,1265.1,12.716]
[1672853809078,5.84413151,1265.3,1265.1,12.716]
[1672853809288,5.84413151,1265.3,1265.2,12.722]
[1672853809922,5.84413151,1265.3,1265.2,15.7293]
[1672853810854,5.84413151,1265.4,1265.3,13.815]
[1672853813694,5.5073,1265.7,1265.3,13.815]
[1672853813905,3.0073,1265.7,1265.3,13.815]
[1672853814114,5.5073,1265.7,1265.3,13.815]
[1672853817484,3.0073,1265.7,1265.3,13.815]
[1672853817687,2.5,1265.6,1265.4,10.9783]
[1672853818117,2.5,1265.6,1265.4,7.971]
[1672853818741,8.85143151,1265.7,1265.4,7.971]
[1672853820329,5.84413151,1265.6,1265.4,7.971]
[1672853821470,3.0073,1265.5,1265.1,4.751]